[Event "Early-Titled-Tuesday-Blitz-March-19-2024"]
[Site "Chess.com"]
[Date "2024.03.19"]
[Round "7"]
[White "cthulhuuu"]
[Black "IMRosen"]
[Result "1-0"]
[WhiteElo "2405"]
[BlackElo "2650"]
[TimeControl "180+1"]
[EndTime "9:17:03 PDT"]
[Termination "cthulhuuu won on time"]

1. e4 {[%clk 0:02:59.6]} 1... c5 {[%clk 0:02:58.4]} 2. Nf3 {[%clk 0:02:59.2]}
2... Nc6 {[%clk 0:02:58.4]} 3. g3 {[%clk 0:02:55.8]} 3... e5 {[%clk 0:02:55.1]}
4. Bg2 {[%clk 0:02:55.1]} 4... g6 {[%clk 0:02:54]} 5. O-O {[%clk 0:02:55.3]}
5... Bg7 {[%clk 0:02:54.4]} 6. d3 {[%clk 0:02:55.9]} 6... Nge7 {[%clk
0:02:54.5]} 7. Nc3 {[%clk 0:02:56.6]} 7... O-O {[%clk 0:02:54.1]} 8. Nd2 {[%clk
0:02:57.4]} 8... d6 {[%clk 0:02:52.2]} 9. Nc4 {[%clk 0:02:57.9]} 9... f5 {[%clk
0:02:52.2]} 10. Nb5 {[%clk 0:02:55.8]} 10... Rf6 {[%clk 0:02:38.3]} 11. Bg5
{[%clk 0:02:55.1]} 11... Re6 {[%clk 0:02:38.6]} 12. exf5 {[%clk 0:02:52.7]}
12... gxf5 {[%clk 0:02:37.4]} 13. Bd5 {[%clk 0:02:52.7]} 13... h6 {[%clk
0:02:29]} 14. Bh4 {[%clk 0:02:38.7]} 14... Kh7 {[%clk 0:01:59.7]} 15. Bxe6
{[%clk 0:02:38.3]} 15... Bxe6 {[%clk 0:02:00.6]} 16. Nbxd6 {[%clk 0:02:38.7]}
16... Qd7 {[%clk 0:01:36.7]} 17. c3 {[%clk 0:02:26]} 17... Ng6 {[%clk
0:01:33.5]} 18. Qh5 {[%clk 0:02:24.4]} 18... Rb8 {[%clk 0:01:05.7]} 19. a4
{[%clk 0:02:23.6]} 19... a6 {[%clk 0:00:54.2]} 20. a5 {[%clk 0:02:23.1]} 20...
Bf8 {[%clk 0:00:54.9]} 21. Bg5 {[%clk 0:02:11.1]} 21... Qg7 {[%clk 0:00:20.6]}
22. Be3 {[%clk 0:01:56.8]} 22... Rd8 {[%clk 0:00:12.9]} 23. Nxf5 {[%clk
0:01:53.5]} 23... Bxf5 {[%clk 0:00:02.9]} 24. Qxf5 {[%clk 0:01:54.4]} 24... Ne7
{[%clk 0:00:03.1]} 25. Qe4 {[%clk 0:01:53.8]} 25... Kh8 {[%clk 0:00:02.6]} 26.
Bxc5 {[%clk 0:01:53.5]} 26... Rc8 {[%clk 0:00:01.2]} 27. b4 {[%clk 0:01:51.6]}
27... Re8 {[%clk 0:00:01.2]} 28. Qxb7 {[%clk 0:01:48.4]} 1-0

[Event "Early-Titled-Tuesday-Blitz-March-19-2024"]
[Site "Chess.com"]
[Date "2024.03.19"]
[Round "7"]
[White "vladislavkovalev"]
[Black "shimastream"]
[Result "0-1"]
[WhiteElo "2860"]
[BlackElo "3011"]
[TimeControl "180+1"]
[EndTime "9:17:06 PDT"]
[Termination "shimastream won on time"]

1. e4 {[%clk 0:03:00.9]} 1... b6 {[%clk 0:02:58.4]} 2. d4 {[%clk 0:03:00.7]}
2... Bb7 {[%clk 0:02:58.9]} 3. Bd3 {[%clk 0:03:01.4]} 3... e6 {[%clk 0:02:59.4]}
4. Nf3 {[%clk 0:03:01.5]} 4... c5 {[%clk 0:02:59]} 5. O-O {[%clk 0:02:49.2]}
5... cxd4 {[%clk 0:02:58.4]} 6. Nxd4 {[%clk 0:02:50.1]} 6... d6 {[%clk
0:02:58.7]} 7. Re1 {[%clk 0:02:48.2]} 7... Nd7 {[%clk 0:02:55.7]} 8. c4 {[%clk
0:02:44.9]} 8... a6 {[%clk 0:02:52.8]} 9. Nc3 {[%clk 0:02:44.9]} 9... g5 {[%clk
0:02:48.9]} 10. Qh5 {[%clk 0:02:26.9]} 10... Qf6 {[%clk 0:02:48.3]} 11. Nf5
{[%clk 0:01:23.4]} 11... h6 {[%clk 0:02:40.4]} 12. Nd5 {[%clk 0:00:58.7]} 12...
exd5 {[%clk 0:02:39.1]} 13. exd5+ {[%clk 0:00:59.6]} 13... Ne5 {[%clk
0:02:38.5]} 14. f4 {[%clk 0:00:46.5]} 14... gxf4 {[%clk 0:02:36.4]} 15. Bxf4
{[%clk 0:00:45.9]} 15... O-O-O {[%clk 0:02:31]} 16. Nxd6+ {[%clk 0:00:42.7]}
16... Bxd6 {[%clk 0:02:31.9]} 17. Bxe5 {[%clk 0:00:42.6]} 17... Bxe5 {[%clk
0:02:32.4]} 18. Rxe5 {[%clk 0:00:36.5]} 18... Qf4 {[%clk 0:02:25.9]} 19. Re4
{[%clk 0:00:13.6]} 19... Qg5 {[%clk 0:02:11.8]} 20. Qxf7 {[%clk 0:00:04.8]}
20... Nf6 {[%clk 0:02:09]} 21. Re7 {[%clk 0:00:05.4]} 21... Rd7 {[%clk
0:01:52.5]} 22. Rxd7 {[%clk 0:00:05.5]} 22... Nxd7 {[%clk 0:01:53.4]} 23. Bf5
{[%clk 0:00:05.1]} 23... Qe3+ {[%clk 0:01:47.6]} 24. Kh1 {[%clk 0:00:05.2]}
24... Rd8 {[%clk 0:01:48.5]} 25. Rf1 {[%clk 0:00:02.7]} 25... Qe2 {[%clk
0:01:45.6]} 26. Bh3 {[%clk 0:00:02.4]} 26... Qxc4 {[%clk 0:01:41.3]} 0-1

[Event "Early-Titled-Tuesday-Blitz-March-19-2024"]
[Site "Chess.com"]
[Date "2024.03.19"]
[Round "7"]
[White "Eliwood44"]
[Black "JonaszBaum"]
[Result "0-1"]
[WhiteElo "2533"]
[BlackElo "2737"]
[TimeControl "180+1"]
[EndTime "9:17:07 PDT"]
[Termination "JonaszBaum won by resignation"]

1. d4 {[%clk 0:03:00.9]} 1... e6 {[%clk 0:02:59.6]} 2. c4 {[%clk 0:02:55.4]}
2... b6 {[%clk 0:02:59.3]} 3. e4 {[%clk 0:02:54.4]} 3... Bb7 {[%clk 0:02:59.2]}
4. Bd3 {[%clk 0:02:54.4]} 4... Nc6 {[%clk 0:02:59.3]} 5. Ne2 {[%clk 0:02:54.1]}
5... Nb4 {[%clk 0:02:59.3]} 6. O-O {[%clk 0:02:50.6]} 6... g6 {[%clk 0:02:46.6]}
7. Nbc3 {[%clk 0:02:49.3]} 7... Nxd3 {[%clk 0:02:45.3]} 8. Qxd3 {[%clk 0:02:49]}
8... Bg7 {[%clk 0:02:45.9]} 9. f4 {[%clk 0:02:48.8]} 9... Ne7 {[%clk 0:02:34.4]}
10. Ng3 {[%clk 0:02:44.8]} 10... f5 {[%clk 0:02:29.3]} 11. d5 {[%clk 0:02:43.9]}
11... O-O {[%clk 0:02:22.4]} 12. e5 {[%clk 0:02:40.4]} 12... d6 {[%clk
0:02:13.9]} 13. exd6 {[%clk 0:02:36.5]} 13... Qxd6 {[%clk 0:02:10.7]} 14. Nb5
{[%clk 0:02:33.8]} 14... Qd7 {[%clk 0:02:01.5]} 15. d6 {[%clk 0:02:28.7]} 15...
Rfd8 {[%clk 0:01:26.9]} 16. Rd1 {[%clk 0:02:27.4]} 16... cxd6 {[%clk 0:01:25.4]}
17. Qxd6 {[%clk 0:02:24.8]} 17... Qc6 {[%clk 0:00:51.6]} 18. Qxd8+ {[%clk
0:02:12.5]} 18... Rxd8 {[%clk 0:00:52.5]} 19. Rxd8+ {[%clk 0:02:12.5]} 19... Bf8
{[%clk 0:00:52.5]} 20. Kf2 {[%clk 0:02:02.9]} 20... Qxg2+ {[%clk 0:00:51.2]} 21.
Ke1 {[%clk 0:02:03.2]} 21... Qg1+ {[%clk 0:00:48.1]} 22. Kd2 {[%clk 0:01:56.6]}
22... Qxh2+ {[%clk 0:00:46.3]} 23. Ne2 {[%clk 0:01:56.8]} 23... Bf3 {[%clk
0:00:44.6]} 24. Nd4 {[%clk 0:01:53.7]} 24... Bxe2 {[%clk 0:00:36.9]} 25. Nxe2
{[%clk 0:01:53.9]} 25... Nc6 {[%clk 0:00:36.7]} 26. Rd3 {[%clk 0:01:42.4]} 26...
Bh6 {[%clk 0:00:27.4]} 27. Kd1 {[%clk 0:01:37.7]} 27... Qh1+ {[%clk 0:00:25.3]}
28. Kc2 {[%clk 0:01:36.6]} 28... Nb4+ {[%clk 0:00:25]} 29. Kc3 {[%clk
0:01:36.2]} 29... Nxd3 {[%clk 0:00:24.7]} 30. Kxd3 {[%clk 0:01:37.1]} 30... Qf3+
{[%clk 0:00:24.6]} 31. Be3 {[%clk 0:01:36.3]} 31... e5 {[%clk 0:00:19.9]} 32.
Rh1 {[%clk 0:01:35.3]} 32... Qxh1 {[%clk 0:00:19.5]} 0-1

[Event "Early-Titled-Tuesday-Blitz-March-19-2024"]
[Site "Chess.com"]
[Date "2024.03.19"]
[Round "7"]
[White "cristiano78"]
[Black "IsaqueGoncalvesSanto"]
[Result "1-0"]
[WhiteElo "2240"]
[BlackElo "1874"]
[TimeControl "180+1"]
[EndTime "9:17:14 PDT"]
[Termination "cristiano78 won by checkmate"]

1. d4 {[%clk 0:03:00.9]} 1... d5 {[%clk 0:02:58.7]} 2. c4 {[%clk 0:03:00.2]}
2... c6 {[%clk 0:02:57.5]} 3. Nf3 {[%clk 0:03:00.2]} 3... dxc4 {[%clk
0:02:57.6]} 4. a4 {[%clk 0:03:00.1]} 4... Bf5 {[%clk 0:02:56.8]} 5. Nc3 {[%clk
0:03:00.1]} 5... Nf6 {[%clk 0:02:50.6]} 6. e3 {[%clk 0:02:59]} 6... e6 {[%clk
0:02:49.1]} 7. Bxc4 {[%clk 0:02:59]} 7... Bb4 {[%clk 0:02:47.9]} 8. O-O {[%clk
0:02:58.9]} 8... O-O {[%clk 0:02:47.2]} 9. Bd2 {[%clk 0:02:58.5]} 9... Nbd7
{[%clk 0:02:46.2]} 10. Qe2 {[%clk 0:02:55.9]} 10... a6 {[%clk 0:02:36.6]} 11. e4
{[%clk 0:02:44.1]} 11... Bg4 {[%clk 0:02:36.1]} 12. e5 {[%clk 0:02:43]} 12...
Nd5 {[%clk 0:02:22.3]} 13. Nxd5 {[%clk 0:02:41.8]} 13... Bxd2 {[%clk 0:02:22.3]}
14. Nf6+ {[%clk 0:02:38]} 14... Nxf6 {[%clk 0:02:18.2]} 15. exf6 {[%clk
0:02:37.2]} 15... Bh6 {[%clk 0:02:17.5]} 16. fxg7 {[%clk 0:02:36.6]} 16... Bxg7
{[%clk 0:02:17.4]} 17. Rad1 {[%clk 0:02:35.7]} 17... b5 {[%clk 0:02:10.4]} 18.
axb5 {[%clk 0:02:35.7]} 18... cxb5 {[%clk 0:02:10.2]} 19. Bd3 {[%clk 0:02:34.1]}
19... Rc8 {[%clk 0:01:55.3]} 20. h3 {[%clk 0:02:31.2]} 20... Bh5 {[%clk
0:01:51.5]} 21. g4 {[%clk 0:02:31]} 21... Bg6 {[%clk 0:01:50.6]} 22. Bxg6 {[%clk
0:02:31.5]} 22... hxg6 {[%clk 0:01:50]} 23. Ne5 {[%clk 0:02:30.9]} 23... Qd5
{[%clk 0:01:49.1]} 24. Qe3 {[%clk 0:02:26.3]} 24... Rc2 {[%clk 0:01:45.3]} 25.
Ra1 {[%clk 0:02:21.3]} 25... Rxb2 {[%clk 0:01:24]} 26. Rxa6 {[%clk 0:02:20.1]}
26... Rb3 {[%clk 0:01:24]} 27. Qf4 {[%clk 0:02:14.7]} 27... Rxh3 {[%clk
0:01:22.9]} 28. f3 {[%clk 0:02:11]} 28... Bxe5 {[%clk 0:01:03.1]} 29. dxe5
{[%clk 0:02:09.5]} 29... Rd8 {[%clk 0:00:25.3]} 30. Kg2 {[%clk 0:02:08.4]} 30...
Rh7 {[%clk 0:00:24.3]} 31. Rfa1 {[%clk 0:01:55.7]} 31... Qd2+ {[%clk 0:00:23.9]}
32. Qxd2 {[%clk 0:01:55.2]} 32... Rxd2+ {[%clk 0:00:24.5]} 33. Kg3 {[%clk
0:01:56.1]} 33... b4 {[%clk 0:00:24.4]} 34. Ra8+ {[%clk 0:01:53.7]} 34... Kg7
{[%clk 0:00:24.3]} 35. Rb8 {[%clk 0:01:53.7]} 35... Rhh2 {[%clk 0:00:19]} 36.
Raa8 {[%clk 0:01:51.4]} 36... Kh6 {[%clk 0:00:16.6]} 37. Rh8+ {[%clk 0:01:46.7]}
37... Kg5 {[%clk 0:00:15.9]} 38. f4# {[%clk 0:01:45.8]} 1-0

[Event "Early-Titled-Tuesday-Blitz-March-19-2024"]
[Site "Chess.com"]
[Date "2024.03.19"]
[Round "7"]
[White "GMAneta"]
[Black "valeriocarnicelli"]
[Result "0-1"]
[WhiteElo "2647"]
[BlackElo "2548"]
[TimeControl "180+1"]
[EndTime "9:17:16 PDT"]
[Termination "valeriocarnicelli won by resignation"]

1. d4 {[%clk 0:03:00.9]} 1... Nf6 {[%clk 0:02:59.8]} 2. Nf3 {[%clk 0:03:00.9]}
2... c5 {[%clk 0:02:59.7]} 3. d5 {[%clk 0:03:00.9]} 3... e6 {[%clk 0:02:58.4]}
4. c4 {[%clk 0:03:00.6]} 4... exd5 {[%clk 0:02:58.8]} 5. cxd5 {[%clk 0:03:01.5]}
5... d6 {[%clk 0:02:59.6]} 6. Nc3 {[%clk 0:03:01.8]} 6... g6 {[%clk 0:02:59.5]}
7. Nd2 {[%clk 0:02:59.6]} 7... Bg7 {[%clk 0:02:59.3]} 8. Nc4 {[%clk 0:03:00]}
8... O-O {[%clk 0:02:55.3]} 9. Bf4 {[%clk 0:02:59.8]} 9... Ne8 {[%clk
0:02:55.6]} 10. e3 {[%clk 0:02:57.9]} 10... a6 {[%clk 0:02:52.7]} 11. a4 {[%clk
0:02:57]} 11... b6 {[%clk 0:02:44.8]} 12. Be2 {[%clk 0:02:53.1]} 12... Qc7
{[%clk 0:02:41.7]} 13. Ne4 {[%clk 0:02:52.2]} 13... Qe7 {[%clk 0:02:22.9]} 14.
Nexd6 {[%clk 0:02:51.2]} 14... Nxd6 {[%clk 0:02:06.5]} 15. Bxd6 {[%clk
0:02:52.1]} 15... Qd8 {[%clk 0:02:06.8]} 16. Bxf8 {[%clk 0:02:51.4]} 16... Bxf8
{[%clk 0:02:07.7]} 17. O-O {[%clk 0:02:50.3]} 17... Nd7 {[%clk 0:02:08.6]} 18.
Bf3 {[%clk 0:02:46.3]} 18... Ra7 {[%clk 0:02:07.3]} 19. e4 {[%clk 0:02:43]}
19... Bg7 {[%clk 0:02:06.6]} 20. d6 {[%clk 0:02:42.3]} 20... Bd4 {[%clk
0:02:06.5]} 21. Re1 {[%clk 0:02:39.6]} 21... Rb7 {[%clk 0:02:05.6]} 22. e5
{[%clk 0:02:39.3]} 22... Rb8 {[%clk 0:02:05.6]} 23. e6 {[%clk 0:02:38.1]} 23...
fxe6 {[%clk 0:02:06.5]} 24. Rxe6 {[%clk 0:02:38]} 24... Nf8 {[%clk 0:02:06.1]}
25. Re7 {[%clk 0:02:37.8]} 25... b5 {[%clk 0:02:06]} 26. Bd5+ {[%clk 0:02:36.9]}
26... Kh8 {[%clk 0:02:04.6]} 27. axb5 {[%clk 0:02:31.9]} 27... axb5 {[%clk
0:02:05.5]} 28. Qf3 {[%clk 0:02:13]} 28... Bf5 {[%clk 0:01:59.7]} 29. g4 {[%clk
0:01:57.3]} 29... bxc4 {[%clk 0:01:59.6]} 30. gxf5 {[%clk 0:01:57]} 30... Qxd6
{[%clk 0:02:00]} 31. Raa7 {[%clk 0:01:56]} 31... Rxb2 {[%clk 0:01:54.1]} 32. Qh3
{[%clk 0:01:37.1]} 32... Rb1+ {[%clk 0:01:44.7]} 33. Kg2 {[%clk 0:01:32.9]}
33... Qxd5+ {[%clk 0:01:44.7]} 34. Kg3 {[%clk 0:01:33]} 34... Rb3+ {[%clk
0:01:42.3]} 0-1

[Event "Early-Titled-Tuesday-Blitz-March-19-2024"]
[Site "Chess.com"]
[Date "2024.03.19"]
[Round "7"]
[White "HajiyevKanan"]
[Black "lamomiajunior"]
[Result "0-1"]
[WhiteElo "2533"]
[BlackElo "2734"]
[TimeControl "180+1"]
[EndTime "9:17:26 PDT"]
[Termination "lamomiajunior won by resignation"]

1. d4 {[%clk 0:03:00.9]} 1... Nf6 {[%clk 0:02:59.9]} 2. Nf3 {[%clk 0:03:01.1]}
2... d5 {[%clk 0:02:59.9]} 3. c4 {[%clk 0:03:01.4]} 3... e6 {[%clk 0:03:00.1]}
4. cxd5 {[%clk 0:03:01.9]} 4... exd5 {[%clk 0:03:00.3]} 5. Nc3 {[%clk
0:03:02.5]} 5... c6 {[%clk 0:03:00.8]} 6. Qc2 {[%clk 0:03:02.6]} 6... Be7 {[%clk
0:02:58.9]} 7. Bf4 {[%clk 0:03:02.2]} 7... g6 {[%clk 0:02:57.3]} 8. e3 {[%clk
0:03:02.4]} 8... Bf5 {[%clk 0:02:57.8]} 9. Bd3 {[%clk 0:02:59.1]} 9... Bxd3
{[%clk 0:02:58.3]} 10. Qxd3 {[%clk 0:03:00]} 10... Nbd7 {[%clk 0:02:58.8]} 11.
Bh6 {[%clk 0:02:59.4]} 11... Ng4 {[%clk 0:02:58]} 12. Bf4 {[%clk 0:02:55.5]}
12... O-O {[%clk 0:02:57.6]} 13. h3 {[%clk 0:02:56.1]} 13... Ngf6 {[%clk
0:02:57.7]} 14. O-O {[%clk 0:02:57]} 14... Re8 {[%clk 0:02:57.7]} 15. Rab1
{[%clk 0:02:57.4]} 15... Nb6 {[%clk 0:02:55.5]} 16. Ne5 {[%clk 0:02:56.1]} 16...
Bd6 {[%clk 0:02:51.6]} 17. Qc2 {[%clk 0:02:55.5]} 17... Nh5 {[%clk 0:02:47.5]}
18. Bh2 {[%clk 0:02:53.7]} 18... f6 {[%clk 0:02:44.8]} 19. Nf3 {[%clk 0:02:45]}
19... Ng7 {[%clk 0:02:44.2]} 20. Bxd6 {[%clk 0:02:42]} 20... Qxd6 {[%clk
0:02:45.1]} 21. Na4 {[%clk 0:02:36.6]} 21... Nxa4 {[%clk 0:02:39.7]} 22. Qxa4
{[%clk 0:02:36.6]} 22... Nf5 {[%clk 0:02:40.1]} 23. b4 {[%clk 0:02:33.1]} 23...
a6 {[%clk 0:02:40.3]} 24. Qa5 {[%clk 0:02:33.6]} 24... Qd7 {[%clk 0:02:39.3]}
25. Qb6 {[%clk 0:02:26]} 25... Nd6 {[%clk 0:02:39.4]} 26. Nd2 {[%clk 0:02:26.2]}
26... Kg7 {[%clk 0:02:34.1]} 27. a4 {[%clk 0:02:25.6]} 27... g5 {[%clk
0:02:32.9]} 28. Rfe1 {[%clk 0:01:47.2]} 28... h5 {[%clk 0:02:30.9]} 29. Nb3
{[%clk 0:01:37.6]} 29... Nc4 {[%clk 0:02:30.5]} 30. Nc5 {[%clk 0:01:14.5]} 30...
Nxb6 {[%clk 0:02:29.6]} 31. Nxd7 {[%clk 0:01:15.2]} 31... Nxd7 {[%clk
0:02:30.5]} 32. b5 {[%clk 0:01:15.5]} 32... cxb5 {[%clk 0:02:30.1]} 33. axb5
{[%clk 0:01:16.4]} 33... a5 {[%clk 0:02:30.2]} 34. Rec1 {[%clk 0:01:12.8]} 34...
Rec8 {[%clk 0:02:30.2]} 35. Re1 {[%clk 0:01:04.6]} 35... f5 {[%clk 0:02:29]} 36.
h4 {[%clk 0:01:02.8]} 36... g4 {[%clk 0:02:28.6]} 37. Kh2 {[%clk 0:01:03.2]}
37... Nb6 {[%clk 0:02:27.2]} 38. Kg3 {[%clk 0:01:02.9]} 38... a4 {[%clk
0:02:26.1]} 39. Kf4 {[%clk 0:01:03.3]} 39... Kf6 {[%clk 0:02:27]} 40. f3 {[%clk
0:01:03.1]} 40... a3 {[%clk 0:02:25.9]} 41. Ra1 {[%clk 0:01:00.7]} 41... a2
{[%clk 0:02:25.3]} 42. Re2 {[%clk 0:00:59.8]} 42... Re8 {[%clk 0:02:15.3]} 43.
Rexa2 {[%clk 0:00:58.5]} 43... Rxa2 {[%clk 0:02:15.9]} 44. Rxa2 {[%clk
0:00:59.4]} 44... Nc4 {[%clk 0:02:16.5]} 45. Re2 {[%clk 0:00:44.4]} 45... b6
{[%clk 0:02:14.8]} 46. Re1 {[%clk 0:00:35.3]} 46... Ra8 {[%clk 0:02:06.7]} 47.
e4 {[%clk 0:00:33.4]} 47... dxe4 {[%clk 0:02:06.6]} 48. fxe4 {[%clk 0:00:33.1]}
48... fxe4 {[%clk 0:02:07.1]} 49. Rxe4 {[%clk 0:00:29.2]} 49... Rd8 {[%clk
0:02:07.7]} 50. g3 {[%clk 0:00:26.2]} 50... Rd5 {[%clk 0:02:04.5]} 51. Re6+
{[%clk 0:00:17.4]} 51... Kxe6 {[%clk 0:02:03.9]} 52. Ke4 {[%clk 0:00:16.6]}
52... Nd6+ {[%clk 0:02:03.6]} 0-1

[Event "Early-Titled-Tuesday-Blitz-March-19-2024"]
[Site "Chess.com"]
[Date "2024.03.19"]
[Round "7"]
[White "Jumbo"]
[Black "RandomNoob04"]
[Result "1-0"]
[WhiteElo "2890"]
[BlackElo "2665"]
[TimeControl "180+1"]
[EndTime "9:17:29 PDT"]
[Termination "Jumbo won by checkmate"]

1. d4 {[%clk 0:03:00.9]} 1... Nf6 {[%clk 0:02:59.6]} 2. Nf3 {[%clk 0:03:01.4]}
2... c5 {[%clk 0:02:59.4]} 3. d5 {[%clk 0:03:00.2]} 3... b5 {[%clk 0:02:59.4]}
4. c4 {[%clk 0:02:57.4]} 4... Bb7 {[%clk 0:02:59.1]} 5. g3 {[%clk 0:02:53.3]}
5... e6 {[%clk 0:02:57.6]} 6. dxe6 {[%clk 0:02:52.1]} 6... fxe6 {[%clk
0:02:58.5]} 7. cxb5 {[%clk 0:02:52.5]} 7... d5 {[%clk 0:02:58.5]} 8. Bh3 {[%clk
0:02:37.1]} 8... Qb6 {[%clk 0:02:49.3]} 9. O-O {[%clk 0:02:34.4]} 9... Be7
{[%clk 0:02:41.5]} 10. a4 {[%clk 0:02:31.3]} 10... Nbd7 {[%clk 0:02:28]} 11. Bf4
{[%clk 0:02:16.5]} 11... h6 {[%clk 0:02:07.5]} 12. a5 {[%clk 0:02:11.1]} 12...
Qxb5 {[%clk 0:02:07.5]} 13. Bxe6 {[%clk 0:02:11.5]} 13... Qc6 {[%clk 0:01:58.4]}
14. Bf5 {[%clk 0:02:08.8]} 14... g5 {[%clk 0:01:52.7]} 15. Be5 {[%clk
0:01:50.8]} 15... d4 {[%clk 0:01:32.5]} 16. a6 {[%clk 0:01:26.3]} 16... Nxe5
{[%clk 0:01:15]} 17. axb7 {[%clk 0:01:25.6]} 17... Nxf3+ {[%clk 0:01:15.7]} 18.
exf3 {[%clk 0:01:26.1]} 18... Qxb7 {[%clk 0:01:16.6]} 19. Be6 {[%clk 0:01:23.8]}
19... Qc6 {[%clk 0:00:58.5]} 20. Re1 {[%clk 0:01:22.4]} 20... Kf8 {[%clk
0:00:53.3]} 21. Na3 {[%clk 0:01:17]} 21... Kg7 {[%clk 0:00:42.4]} 22. Nc4 {[%clk
0:01:16.9]} 22... Rhe8 {[%clk 0:00:42.9]} 23. Qd3 {[%clk 0:01:16.9]} 23... Bf8
{[%clk 0:00:33.8]} 24. Ne5 {[%clk 0:01:14.5]} 24... Qxe6 {[%clk 0:00:13.8]} 25.
Qg6+ {[%clk 0:01:14.9]} 25... Kh8 {[%clk 0:00:14.5]} 26. Nf7+ {[%clk 0:01:15.1]}
26... Qxf7 {[%clk 0:00:15.1]} 27. Qxf7 {[%clk 0:01:15.8]} 27... Bg7 {[%clk
0:00:15.6]} 28. Rxe8+ {[%clk 0:01:12.8]} 28... Rxe8 {[%clk 0:00:16.5]} 29. Rxa7
{[%clk 0:01:12.8]} 29... d3 {[%clk 0:00:13.8]} 30. Qxg7# {[%clk 0:01:12.7]} 1-0

[Event "Early-Titled-Tuesday-Blitz-March-19-2024"]
[Site "Chess.com"]
[Date "2024.03.19"]
[Round "7"]
[White "KVAIDAN"]
[Black "balack95"]
[Result "0-1"]
[WhiteElo "2322"]
[BlackElo "2473"]
[TimeControl "180+1"]
[EndTime "9:17:31 PDT"]
[Termination "balack95 won by resignation"]

1. f4 {[%clk 0:02:08.8]} 1... g6 {[%clk 0:02:57.8]} 2. Nf3 {[%clk 0:02:08]} 2...
Bg7 {[%clk 0:02:58.7]} 3. e4 {[%clk 0:02:07.3]} 3... Nh6 {[%clk 0:02:59.6]} 4.
Be2 {[%clk 0:02:06.4]} 4... d5 {[%clk 0:02:59.7]} 5. e5 {[%clk 0:02:04.5]} 5...
Bg4 {[%clk 0:02:57.2]} 6. O-O {[%clk 0:02:02.7]} 6... Nf5 {[%clk 0:02:57.5]} 7.
d4 {[%clk 0:02:01.9]} 7... O-O {[%clk 0:02:57]} 8. c3 {[%clk 0:02:00.8]} 8... c5
{[%clk 0:02:56.9]} 9. h3 {[%clk 0:01:55.6]} 9... Bxf3 {[%clk 0:02:55.7]} 10.
Bxf3 {[%clk 0:01:55.2]} 10... cxd4 {[%clk 0:02:56]} 11. cxd4 {[%clk 0:01:55]}
11... Nc6 {[%clk 0:02:54.1]} 12. Nc3 {[%clk 0:01:55]} 12... e6 {[%clk
0:02:47.6]} 13. Ne2 {[%clk 0:01:52.3]} 13... Qb6 {[%clk 0:02:47.6]} 14. g4
{[%clk 0:01:45.4]} 14... Nfxd4 {[%clk 0:02:46.6]} 15. Be3 {[%clk 0:01:40.5]}
15... Nxf3+ {[%clk 0:02:41.7]} 16. Rxf3 {[%clk 0:01:39.7]} 16... Qxb2 {[%clk
0:02:41.1]} 17. Rb1 {[%clk 0:01:39.6]} 17... Qxa2 {[%clk 0:02:39.6]} 18. Rxb7
{[%clk 0:01:39.8]} 18... Rab8 {[%clk 0:02:34.8]} 19. Rc7 {[%clk 0:01:31.2]}
19... Rb1 {[%clk 0:02:32]} 20. Bc1 {[%clk 0:01:31]} 20... Qa6 {[%clk 0:02:11.5]}
21. Qc2 {[%clk 0:01:20.6]} 21... Rxc1+ {[%clk 0:02:05.4]} 22. Nxc1 {[%clk
0:01:20]} 22... Qb6+ {[%clk 0:02:05.7]} 23. Qf2 {[%clk 0:01:14]} 23... Qxc7
{[%clk 0:02:04.1]} 24. Nd3 {[%clk 0:01:14.4]} 24... Qb6 {[%clk 0:02:02.6]} 25.
Nc5 {[%clk 0:01:13.5]} 25... Rc8 {[%clk 0:01:57.9]} 26. Rb3 {[%clk 0:01:04.3]}
26... Nb4 {[%clk 0:01:57.6]} 27. Nd7 {[%clk 0:00:54.3]} 27... Qxf2+ {[%clk
0:01:31.7]} 28. Kxf2 {[%clk 0:00:53.8]} 28... a5 {[%clk 0:01:32]} 29. f5 {[%clk
0:00:51.7]} 29... gxf5 {[%clk 0:01:31]} 30. gxf5 {[%clk 0:00:51.6]} 30... Rc7
{[%clk 0:01:23.7]} 31. fxe6 {[%clk 0:00:47.7]} 31... fxe6 {[%clk 0:01:22.7]} 32.
Nf6+ {[%clk 0:00:41.9]} 32... Bxf6 {[%clk 0:01:22.6]} 33. exf6 {[%clk
0:00:42.5]} 33... Kf7 {[%clk 0:01:23.2]} 34. Ra3 {[%clk 0:00:43.1]} 34... Rc5
{[%clk 0:01:22.2]} 35. Rf3 {[%clk 0:00:40.9]} 35... a4 {[%clk 0:01:21.2]} 36.
Rf4 {[%clk 0:00:39.9]} 36... Nd3+ {[%clk 0:01:19]} 0-1

[Event "Early-Titled-Tuesday-Blitz-March-19-2024"]
[Site "Chess.com"]
[Date "2024.03.19"]
[Round "7"]
[White "Let_it_be_1"]
[Black "ChempionBg"]
[Result "1-0"]
[WhiteElo "2604"]
[BlackElo "2363"]
[TimeControl "180+1"]
[EndTime "9:17:33 PDT"]
[Termination "Let_it_be_1 won by resignation"]

1. e4 {[%clk 0:03:00.9]} 1... c5 {[%clk 0:02:59.1]} 2. Nf3 {[%clk 0:03:00.8]}
2... d6 {[%clk 0:02:59]} 3. d4 {[%clk 0:03:01.2]} 3... cxd4 {[%clk 0:02:58.9]}
4. Nxd4 {[%clk 0:03:01.9]} 4... Nf6 {[%clk 0:02:58.9]} 5. Nc3 {[%clk 0:03:02.2]}
5... a6 {[%clk 0:02:57.7]} 6. Be2 {[%clk 0:03:02.2]} 6... e6 {[%clk 0:02:55.2]}
7. O-O {[%clk 0:03:01.7]} 7... Be7 {[%clk 0:02:55.4]} 8. f4 {[%clk 0:03:01.6]}
8... O-O {[%clk 0:02:54.9]} 9. a4 {[%clk 0:03:00.5]} 9... Nc6 {[%clk 0:02:54.7]}
10. Be3 {[%clk 0:02:59.9]} 10... Qc7 {[%clk 0:02:54.7]} 11. Kh1 {[%clk
0:02:59.5]} 11... Re8 {[%clk 0:02:53.7]} 12. Qd2 {[%clk 0:02:59.1]} 12... Na5
{[%clk 0:02:47.1]} 13. Qd3 {[%clk 0:02:58.6]} 13... Rb8 {[%clk 0:02:44.2]} 14.
Rad1 {[%clk 0:02:55.7]} 14... b6 {[%clk 0:02:38.7]} 15. Bf3 {[%clk 0:02:27.4]}
15... Bb7 {[%clk 0:02:31.1]} 16. Bc1 {[%clk 0:02:17.2]} 16... Qc4 {[%clk
0:02:24.7]} 17. Qe3 {[%clk 0:02:08.6]} 17... Bf8 {[%clk 0:02:17.6]} 18. e5
{[%clk 0:02:05.2]} 18... dxe5 {[%clk 0:02:10.3]} 19. fxe5 {[%clk 0:02:05.2]}
19... Nd5 {[%clk 0:01:52.4]} 20. Nxd5 {[%clk 0:01:57.6]} 20... exd5 {[%clk
0:01:52.3]} 21. e6 {[%clk 0:01:49]} 21... fxe6 {[%clk 0:01:17.3]} 22. b3 {[%clk
0:01:47]} 22... Qc8 {[%clk 0:01:09.8]} 23. Bg4 {[%clk 0:01:43.6]} 23... Kh8
{[%clk 0:00:49.3]} 24. Nxe6 {[%clk 0:01:35.3]} 24... Qxc2 {[%clk 0:00:35.3]} 25.
Qd4 {[%clk 0:01:14]} 25... Nxb3 {[%clk 0:00:24.6]} 26. Rxf8+ {[%clk 0:01:11.8]}
1-0